fUSD/lending_fUSD_20260601
["ID","MTS","AMOUNT","RATE_DAILY","PERIOD"]
[423633490,1780266653000,-500.0,0.00038082,60]
[423633485,1780266653000,-466.0,0.00038082,60]
[423633493,1780266653000,-500.0,0.00038082,60]
[423633486,1780266653000,-500.0,0.00038082,60]
[423633492,1780266653000,-466.0,0.00038082,60]
[423633484,1780266653000,-500.0,0.00038082,60]
[423633491,1780266653000,-210.25906995,0.00038082,60]
[423633489,1780266653000,-466.0,0.00038082,60]
[423633501,1780266653000,-466.0,0.00038082,60]
[423633499,1780266653000,-466.0,0.00038082,60]
[423633497,1780266653000,-500.0,0.00038082,60]
[423633498,1780266653000,-500.0,0.00038082,60]
[423633496,1780266653000,-466.0,0.00038082,60]
[423633506,1780266653000,-466.0,0.00038082,60]
[423633494,1780266653000,-466.0,0.00038082,60]
[423633495,1780266653000,-500.0,0.00038082,60]
[423633505,1780266653000,-466.0,0.00038082,60]
[423633488,1780266653000,-245.49911136,0.00038082,60]
[423633504,1780266653000,-466.0,0.00038082,60]
[423633538,1780266654000,-8829.61499394,0.00027397,10]
[423633535,1780266654000,-19.429592,0.00035481,2]
[423633534,1780266654000,-280.570408,0.00035481,2]
[423633543,1780266654000,-9077.54866152,0.0003813,2]
[423633536,1780266654000,-158.0,0.00035712,30]
[423633540,1780266654000,-300.0,0.00035481,2]
[423633539,1780266654000,-1862.57500606,0.00027397,10]
[423633542,1780266654000,-8943.78386462,0.0003813,2]
[423633541,1780266654000,-6784.64378867,0.0003813,2]
[423633545,1780266654000,-2137.39999991,0.0003813,2]
[423633544,1780266654000,-435.5076129,0.0003813,2]
[423633537,1780266654000,-7317.57040799,0.0003813,2]
[423633546,1780266655000,-2870.51693755,0.00011099,2]
[423633550,1780266656000,-158.0,0.00021,2]
[423633547,1780266656000,-2278.1781833,0.00011099,2]
[423633551,1780266656000,-158.0,0.00022,2]
[423633556,1780266656000,-118.30023464,0.00028968,2]
[423633552,1780266656000,-174.0,0.00023,2]
[423633555,1780266656000,-362.14,0.00028801,7]
[423633549,1780266656000,-158.0,0.0002,2]
[423633548,1780266656000,-7234.69088533,0.00011099,2]
[423633553,1780266656000,-362.14,0.00028635,30]
[423633554,1780266656000,-1356.0,0.00028798,2]
[423633557,1780266693000,-500.0,7.899e-05,2]
[423633559,1780266694000,-300.0,7.899e-05,2]
[423633558,1780266694000,-200.0,6.696e-05,2]
[423633561,1780266708000,-437.48159187,7.899e-05,2]
[423633560,1780266708000,-62.51840813,7.899e-05,2]
[423633562,1780266709000,-62.51840813,7.899e-05,2]
[423633564,1780266883000,-300.0,7.898e-05,2]
[423633565,1780266883000,-200.0,7.899e-05,2]
[423633563,1780266883000,-500.0,7.899e-05,2]
[423633567,1780266884000,-200.0,7.899e-05,2]
[423633566,1780266884000,-300.0,7.899e-05,2]
[423633572,1780266885000,1000.0,0.00026338,120]
[423633571,1780266885000,-500.0,7.8e-05,2]
[423633570,1780266885000,-500.0,7.8e-05,2]
[423633569,1780266885000,-200.0,7.899e-05,2]
[423633568,1780266885000,-300.0,7.899e-05,2]
[423633575,1780266886000,-500.0,7.8e-05,2]
[423633574,1780266886000,389.85,0.000263,120]
[423633573,1780266886000,-500.0,7.8e-05,2]
[423633576,1780266887000,-500.0,7.8e-05,2]
[423633577,1780266888000,-500.0,7.8e-05,2]
[423633578,1780266888000,-500.0,7.8e-05,2]
[423633579,1780266889000,-500.0,7.8e-05,2]
[423633580,1780266889000,-176.1831,7.8e-05,2]
[423633581,1780266889000,-323.8169,7.8e-05,2]
[423633582,1780266890000,-500.0,7.8e-05,2]
[423633586,1780267618000,-192.9932503,7.799e-05,2]
[423633592,1780267832000,-233.96697237,8.037e-05,2]
[423633593,1780267832000,-40.03302763,8.037e-05,2]
[423633591,1780267832000,-250.0,7.949e-05,2]
[423633595,1780267832000,-1256.74948363,8.178e-05,2]
[423633596,1780267832000,-354.79920637,8.194e-05,2]
[423633594,1780267832000,-306.24297237,8.178e-05,2]
[423633615,1780267833000,-9999.99,8.864e-05,2]
[423633630,1780267833000,-198.88606731,0.00010546,2]
[423633619,1780267833000,-608.5202211,9.431e-05,2]
[423633618,1780267833000,-299.99,8.864e-05,2]
[423633623,1780267833000,-558.73858181,0.0001,2]
[423633624,1780267833000,-558.73858181,0.0001,2]
[423633626,1780267833000,-608.5202211,0.00010446,2]
[423633628,1780267833000,-179.5065138,0.00010493,2]
[423633652,1780267833000,-10924.20259769,0.00012028,2]
[423633629,1780267833000,-557.52372807,0.00010545,2]
[423633632,1780267833000,-393.79441326,0.00010546,2]
[423633627,1780267833000,-1000.0,0.00010486,2]
[423633634,1780267833000,-173.88324742,0.00010546,2]
[423633649,1780267833000,-2702.65,0.00012008,2]
[423633647,1780267833000,-6273.4931,0.00012,2]
[423633636,1780267833000,-500.0,0.00010812,2]
[423633621,1780267833000,-2119.727,0.0001,2]
[423633625,1780267833000,-558.73858181,0.0001,2]
[423633622,1780267833000,-183.09,0.0001,2]
[423633597,1780267833000,-152.0,8.316e-05,2]
[423633616,1780267833000,-2774.82,8.864e-05,2]
[423633598,1780267833000,-608.52022111,8.316e-05,2]
[423633599,1780267833000,-1200.0,8.578e-05,2]
[423633600,1780267833000,-500.0,8.579e-05,2]
[423633601,1780267833000,-500.0,8.579e-05,2]
[423633602,1780267833000,-300.0,8.579e-05,2]
[423633604,1780267833000,-500.0,8.579e-05,2]
[423633603,1780267833000,-344.75265722,8.579e-05,2]
[423633605,1780267833000,-500.0,8.579e-05,2]
[423633606,1780267833000,-250.0,8.734e-05,2]
[423633610,1780267833000,-9999.99,8.864e-05,2]
[423633609,1780267833000,-9999.99,8.864e-05,2]
[423633607,1780267833000,-2530.69934989,8.744e-05,2]
[423633608,1780267833000,-500.0,8.744e-05,2]
[423633611,1780267833000,-150.99,8.864e-05,2]
[423633612,1780267833000,-999.99,8.864e-05,2]
[423633613,1780267833000,-53922.72,8.864e-05,2]
[423633614,1780267833000,-9999.99,8.864e-05,2]
[423633617,1780267833000,-9999.99,8.864e-05,2]
[423633642,1780267833000,-1852.42,0.00011794,2]
[423633695,1780267833000,-415.82786749,0.00012641,2]
[423633644,1780267833000,-261.18271609,0.00011842,2]
[423633698,1780267833000,-384.55873384,0.00012641,2]
[423633703,1780267833000,-380.03833642,0.00012641,2]
[423633711,1780267833000,-500.0,0.00012641,2]
[423633713,1780267833000,-289.68418968,0.00012641,2]
[423633715,1780267833000,-150.0,0.00012641,2]
[423633708,1780267833000,-500.0,0.00012641,2]
[423633709,1780267833000,-500.0,0.00012641,2]
[423633706,1780267833000,-500.0,0.00012641,2]
[423633717,1780267833000,-363862.8627708,0.00012642,2]
[423633725,1780267833000,-1254.41808677,0.00012642,2]
[423633720,1780267833000,-67308.51749042,0.00012642,2]
[423633723,1780267833000,-324479.40387039,0.00012642,2]
[423633722,1780267833000,-108918.51588662,0.00012642,2]
[423633728,1780267833000,-584.79955105,0.00012642,2]
[423633730,1780267833000,-320.124,0.00012642,2]
[423633732,1780267833000,-387.105,0.00012642,2]
[423633640,1780267833000,-155.34,0.00011696,2]
[423633692,1780267833000,-500.0,0.00012641,2]
[423633686,1780267833000,-500.0,0.00012641,2]
[423633700,1780267833000,-500.0,0.00012641,2]
[423633681,1780267833000,-17562.0,0.00012603,2]
[423633646,1780267833000,-150.0,0.00011899,2]
[423633638,1780267833000,-200.0,0.0001115,2]
[423633654,1780267833000,-500.0,0.00012126,2]
[423633664,1780267833000,-500.0,0.000124,2]
[423633666,1780267833000,-171.2,0.00012511,2]
[423633669,1780267833000,-27941.1387,0.00012542,2]
[423633689,1780267833000,-500.0,0.00012641,2]
[423633668,1780267833000,-2500.0,0.00012539,2]
[423633658,1780267833000,-470.16,0.00012216,2]
[423633656,1780267833000,-393.79441326,0.00012128,2]
[423633660,1780267833000,-2000.0,0.00012232,2]
[423633671,1780267833000,-9906.70880498,0.00012587,2]
[423633673,1780267833000,-4995.0,0.00012592,2]
[423633677,1780267833000,-4673.42,0.00012592,2]
[423633684,1780267833000,-500.0,0.00012641,2]
[423633675,1780267833000,-2336.71,0.00012592,2]
[423633679,1780267833000,-14584.0,0.00012603,2]
[423633662,1780267833000,-5597.53,0.00012272,2]
[423633761,1780267834000,-564.8678854,0.00012642,2]
[423633745,1780267834000,-412.77728069,8.863e-05,2]
[423633753,1780267834000,-500.0,8.863e-05,2]
[423633747,1780267834000,-87.22271931,8.863e-05,2]
[423633750,1780267834000,-500.0,8.863e-05,2]
[423633751,1780267834000,-500.0,8.863e-05,2]
[423633759,1780267834000,-500.0,8.863e-05,2]
[423633755,1780267834000,-444.90939529,8.863e-05,2]
[423633781,1780267834000,-500.0,8.863e-05,2]
[423633778,1780267834000,-13.09528515,8.863e-05,2]
[423633782,1780267834000,-178.24009269,8.863e-05,2]
[423633774,1780267834000,-486.90471485,8.863e-05,2]
[423633786,1780267834000,-321.75990731,8.863e-05,2]
[423633789,1780267834000,-441.0949349,8.863e-05,2]
[423633788,1780267834000,-500.0,8.863e-05,2]
[423633780,1780267834000,-500.0,8.863e-05,2]
[423634011,1780267838000,-500.0,0.00013698,2]
[423634013,1780267838000,-500.0,0.00013698,2]
[423634015,1780267838000,-166.66,0.00013699,2]
[423634016,1780267838000,-500.0,0.00013699,2]
[423634009,1780267838000,-1554.63042781,0.00013599,2]
[423634007,1780267838000,-166.66,0.00013505,2]
[423634017,1780267838000,-500.0,0.00013699,2]
[423634014,1780267838000,-200.0,0.00013699,2]
[423634010,1780267838000,-500.0,0.00013698,2]
[423634019,1780267838000,-500.0,0.00013699,2]
[423634021,1780267838000,-500.0,0.00013699,2]
[423634025,1780267838000,-500.0,0.00013699,2]
[423634020,1780267838000,-500.0,0.00013699,2]
[423634012,1780267838000,-500.0,0.00013698,2]
[423634027,1780267838000,-500.0,0.00013699,2]
[423634018,1780267838000,-500.0,0.00013699,2]
[423634028,1780267838000,-500.0,0.00013699,2]
[423634022,1780267838000,-500.0,0.00013699,2]
[423634024,1780267838000,-500.0,0.00013699,2]
[423634023,1780267838000,-500.0,0.00013699,2]
[423634030,1780267838000,-500.0,0.00013699,2]
[423634040,1780267838000,-500.0,0.00013699,2]
[423634026,1780267838000,-500.0,0.00013699,2]
[423634006,1780267838000,-5840.27,0.00013252,2]
[423634001,1780267838000,-5631.21105914,0.00012642,2]
[423634002,1780267838000,-1071.60360845,0.00012642,2]
[423634041,1780267838000,-500.0,0.00013699,2]
[423633982,1780267838000,-58.9050651,8.863e-05,2]
[423633984,1780267838000,-500.0,8.863e-05,2]
[423633989,1780267838000,-500.0,8.863e-05,2]
[423633986,1780267838000,-177.32565951,8.863e-05,2]
[423633995,1780267838000,-500.0,8.863e-05,2]
[423633985,1780267838000,-500.0,8.863e-05,2]
[423633994,1780267838000,-500.0,8.863e-05,2]
[423633993,1780267838000,-500.0,8.863e-05,2]
[423633983,1780267838000,-500.0,8.863e-05,2]
[423633987,1780267838000,-500.0,8.863e-05,2]
[423633992,1780267838000,-500.0,8.863e-05,2]
[423633988,1780267838000,-500.0,8.863e-05,2]
[423633990,1780267838000,-500.0,8.863e-05,2]
[423633991,1780267838000,-500.0,8.863e-05,2]
[423633997,1780267838000,-500.0,8.863e-05,2]
[423634003,1780267838000,-1442375.621373,0.00012642,2]
[423634000,1780267838000,-580.29201335,0.00012642,2]
[423634004,1780267838000,-10244.60993793,0.0001278,2]
[423633999,1780267838000,-744.66953343,0.00012642,2]
[423633998,1780267838000,-181915.98787118,0.00012642,2]
[423633996,1780267838000,-500.0,8.863e-05,2]
[423634005,1780267838000,-150.0,0.00012987,2]
[423634008,1780267838000,-6802.36081122,0.00013599,2]
[423634031,1780267838000,-500.0,0.00013699,2]
[423634042,1780267838000,-500.0,0.00013699,2]
[423634032,1780267838000,-500.0,0.00013699,2]
[423634071,1780267838000,-500.0,0.00014042,2]
[423634077,1780267838000,-500.0,0.00014206,3]
[423634079,1780267838000,-166.66,0.00014247,2]
[423634081,1780267838000,-166.66,0.00014384,2]
[423634083,1780267838000,-166.66,0.00014397,2]
[423634085,1780267838000,-9906.70880494,0.00014511,2]
[423634087,1780267838000,-166.66,0.00014843,2]
[423634092,1780267838000,-166.66,0.00015289,2]
[423634096,1780267838000,-21390.45,0.0001531,2]
[423634098,1780267838000,-9999.99,0.0001531,2]
[423634094,1780267838000,-2000.0,0.0001529,2]
[423634101,1780267838000,-27456.47,0.0001531,2]
[423634090,1780267838000,-231.84432989,0.00015,2]
[423634103,1780267838000,-166.66,0.00015734,2]
[423634105,1780267838000,-300.0,0.00016,2]
[423634107,1780267838000,-302.87295711,0.00016,2]
[423634109,1780267838000,-302.87295711,0.000161,2]
[423634111,1780267838000,-302.87295711,0.000162,2]
[423634113,1780267838000,-10924.20259767,0.00016288,2]
[423634115,1780267838000,-9906.70880494,0.00016434,2]
[423634117,1780267838000,-469.6,0.00016438,2]
[423634119,1780267838000,-168.2,0.00016712,2]
[423634121,1780267838000,-2000.0,0.00016819,2]
[423634075,1780267838000,-10924.20259767,0.00014158,2]
[423634069,1780267838000,-250.0,0.00014,2]
[423634029,1780267838000,-500.0,0.00013699,2]
[423634067,1780267838000,-166.66,0.00013973,2]
[423634036,1780267838000,-500.0,0.00013699,2]
[423634124,1780267838000,-350.0,0.00018,2]
[423634037,1780267838000,-500.0,0.00013699,2]
[423634038,1780267838000,-500.0,0.00013699,2]
[423634033,1780267838000,-500.0,0.00013699,2]
[423634034,1780267838000,-500.0,0.00013699,2]
[423634035,1780267838000,-500.0,0.00013699,2]
[423634039,1780267838000,-500.0,0.00013699,2]
[423634043,1780267838000,-500.0,0.00013699,2]
[423634045,1780267838000,-500.0,0.00013699,2]
[423634047,1780267838000,-500.0,0.00013699,2]
[423634046,1780267838000,-500.0,0.00013699,2]
[423634060,1780267838000,-2000.0,0.00013761,2]
[423634051,1780267838000,-500.0,0.00013699,2]
[423634054,1780267838000,-500.0,0.00013699,2]
[423634052,1780267838000,-500.0,0.00013699,2]
[423634048,1780267838000,-500.0,0.00013699,2]
[423634050,1780267838000,-500.0,0.00013699,2]
[423634056,1780267838000,-500.0,0.00013699,2]
[423634049,1780267838000,-500.0,0.00013699,2]
[423634058,1780267838000,-731.19,0.000137,2]
[423634064,1780267838000,-166.66,0.00013951,2]
[423634073,1780267838000,-166.66,0.0001411,2]
[423634062,1780267838000,-166.66,0.00013836,2]
[423634044,1780267838000,-500.0,0.00013699,2]
[423634191,1780267839000,-691.0,0.0002,2]
[423634201,1780267839000,-995.0,0.0002,2]
[423634203,1780267839000,-555.0,0.00020054,5]
[423634193,1780267839000,-49241.4,0.0002,2]
[423634177,1780267839000,-400.0,0.0002,2]
[423634197,1780267839000,-288.0,0.0002,2]
[423634186,1780267839000,-265.0,0.0002,2]
[423634199,1780267839000,-186.0,0.0002,2]
[423634181,1780267839000,-387.0,0.0002,2]
[423634205,1780267839000,-1500000.0,0.00020054,2]
[423634189,1780267839000,-1097.0,0.0002,2]
[423634207,1780267839000,-383.09583771,0.00020054,2]
[423634215,1780267839000,-10924.20259767,0.00020549,2]
[423634211,1780267839000,-9906.70880494,0.00020282,2]
[423634221,1780267839000,-387.0,0.00021,2]
[423634223,1780267839000,-507.0,0.00021,2]
[423634225,1780267839000,-265.0,0.00021,2]
[423634213,1780267839000,-469.6,0.00020381,2]
[423634217,1780267839000,-150.0,0.00020833,3]
[423634219,1780267839000,-268.0,0.00021,2]
[423634227,1780267839000,-1097.0,0.00021,2]
[423634233,1780267839000,-288.0,0.00021,2]
[423634232,1780267839000,-1054.0,0.00021,2]
[423634179,1780267839000,-268.0,0.0002,2]
[423634209,1780267839000,-85213.76482399,0.00020054,2]
[423634183,1780267839000,-507.0,0.0002,2]
[423634150,1780267839000,-151.0,0.00018541,2]
[423634167,1780267839000,-151.0,0.00018541,2]
[423634129,1780267839000,-469.6,0.0001841,2]
[423634131,1780267839000,-10924.20259767,0.00018419,2]
[423634125,1780267839000,-731.19,0.00018,2]
[423634127,1780267839000,-9906.70880494,0.00018358,2]
[423634126,1780267839000,-2000.0,0.00018348,2]
[423634133,1780267839000,-151.0,0.00018541,2]
[423634135,1780267839000,-151.0,0.00018541,2]
[423634137,1780267839000,-151.0,0.00018541,2]
[423634143,1780267839000,-151.0,0.00018541,2]
[423634141,1780267839000,-151.0,0.00018541,2]
[423634139,1780267839000,-151.0,0.00018541,2]
[423634149,1780267839000,-151.0,0.00018541,2]
[423634145,1780267839000,-151.0,0.00018541,2]
[423634147,1780267839000,-151.0,0.00018541,2]
[423634235,1780267839000,-186.0,0.00021,2]
[423634153,1780267839000,-151.0,0.00018541,2]
[423634157,1780267839000,-151.0,0.00018541,2]
[423634155,1780267839000,-151.0,0.00018541,2]
[423634161,1780267839000,-151.0,0.00018541,2]
[423634163,1780267839000,-151.0,0.00018541,2]
[423634169,1780267839000,-151.0,0.00018541,2]
[423634175,1780267839000,-196.6,0.000196,7]
[423634159,1780267839000,-151.0,0.00018541,2]
[423634165,1780267839000,-151.0,0.00018541,2]
[423634171,1780267839000,-151.0,0.00018541,2]
[423634173,1780267839000,-1842.48838443,0.00019,2]
[423634230,1780267839000,-691.0,0.00021,2]
[423634195,1780267839000,-1054.0,0.0002,2]
[423634241,1780267839000,-1347.6,0.00021765,2]
[423634323,1780267839000,-500.0,0.00024,2]
[423634308,1780267839000,-1054.0,0.00023,2]
[423634321,1780267839000,-2000.0,0.00023846,7]
[423634319,1780267839000,-1000.0,0.00023564,2]
[423634317,1780267839000,-542.33,0.0002353,2]
[423634312,1780267839000,-186.0,0.00023,2]
[423634325,1780267839000,-268.0,0.00024,2]
[423634327,1780267839000,-387.0,0.00024,2]
[423634329,1780267839000,-507.0,0.00024,2]
[423634331,1780267839000,-265.0,0.00024,2]
[423634333,1780267839000,-1097.0,0.00024,2]
[423634338,1780267839000,-1054.0,0.00024,2]
[423634310,1780267839000,-288.0,0.00023,2]
[423634340,1780267839000,-288.0,0.00024,2]
[423634351,1780267839000,-652.64,0.00024174,2]
[423634344,1780267839000,-995.0,0.00024,2]
[423634346,1780267839000,-9906.70880494,0.00024129,2]
[423634349,1780267839000,-1254.59,0.00024174,2]
[423634353,1780267839000,-758.18,0.00024174,2]
[423634355,1780267839000,-4933.55,0.00024174,2]
[423634359,1780267839000,-500.0,0.00024384,2]
[423634357,1780267839000,-469.6,0.00024324,2]
[423634361,1780267839000,-500.0,0.00024411,2]
[423634365,1780267839000,-665.5,0.00024589,2]
[423634237,1780267839000,-995.0,0.00021,2]
[423634363,1780267839000,-665.5,0.00024454,2]
[423634342,1780267839000,-186.0,0.00024,2]
[423634306,1780267839000,-691.0,0.00023,2]
[423634335,1780267839000,-691.0,0.00024,2]
[423634315,1780267839000,-995.0,0.00023,2]
[423634239,1780267839000,-452.90140613,0.00021421,2]
[423634304,1780267839000,-1097.0,0.00023,2]
[423634266,1780267839000,-387.0,0.00022,2]
[423634264,1780267839000,-731.19,0.00022,7]
[423634271,1780267839000,-265.0,0.00022,2]
[423634269,1780267839000,-507.0,0.00022,2]
[423634256,1780267839000,-5000.0,0.00021918,2]
[423634260,1780267839000,-450.0,0.00022,2]
[423634273,1780267839000,-1097.0,0.00022,2]
[423634262,1780267839000,-268.0,0.00022,2]
[423634258,1780267839000,-261.01,0.00021918,2]
[423634275,1780267839000,-254.78741972,0.00022,2]
[423634277,1780267839000,-691.0,0.00022,2]
[423634243,1780267839000,-589.82,0.000219,7]
[423634289,1780267839000,-9906.70880494,0.00022205,2]
[423634291,1780267839000,-469.6,0.00022353,2]
[423634293,1780267839000,-10924.20259767,0.00022679,2]
[423634282,1780267839000,-5341.74,0.00022,2]
[423634295,1780267839000,-268.0,0.00023,2]
[423634302,1780267839000,-265.0,0.00023,2]
[423634284,1780267839000,-288.0,0.00022,2]
[423634287,1780267839000,-995.0,0.00022,2]
[423634300,1780267839000,-507.0,0.00023,2]
[423634280,1780267839000,-1054.0,0.00022,2]
[423634297,1780267839000,-387.0,0.00023,2]
[423634286,1780267839000,-186.0,0.00022,2]
[423634447,1780267840000,-665.5,0.00026486,2]
[423634441,1780267840000,-500.0,0.00026429,2]
[423634451,1780267840000,-317.92,0.00026668,2]
[423634445,1780267840000,-1554.63042779,0.00026456,2]
[423634435,1780267840000,-665.5,0.00026215,2]
[423634455,1780267840000,-665.5,0.00026757,2]
[423634439,1780267840000,-665.5,0.00026351,2]
[423634453,1780267840000,-731.19,0.000267,7]
[423634443,1780267840000,-6802.3608112,0.00026456,2]
[423634420,1780267840000,-4933.55,0.00025786,2]
[423634431,1780267840000,-9906.70880494,0.00026053,2]
[423634449,1780267840000,-665.5,0.00026622,2]
[423634463,1780267840000,-608.0,0.00027137,2]
[423634458,1780267840000,-665.5,0.00026893,2]
[423634467,1780267840000,-407.08,0.00027397,30]
[423634461,1780267840000,-665.5,0.00027028,2]
[423634459,1780267840000,-10924.20259767,0.0002694,2]
[423634476,1780267840000,-231.54,0.00027397,2]
[423634465,1780267840000,-500.0,0.00027222,2]
[423634474,1780267840000,-300.0,0.00027397,2]
[423634470,1780267840000,-209.2462101,0.00027397,2]
[423634478,1780267840000,-9581.77,0.00027397,10]
[423634490,1780267840000,-608.0,0.00027671,2]
[423634492,1780267840000,-491.51,0.000277,30]
[423634480,1780267840000,-7984.8,0.00027397,10]
[423634429,1780267840000,-500.0,0.00026,2]
[423634437,1780267840000,-469.6,0.00026296,2]
[423634427,1780267840000,-550.0,0.00026,2]
[423634374,1780267840000,-500.0,0.00024743,30]
[423634414,1780267840000,-1254.59,0.00025786,2]
[423634494,1780267840000,-600.0,0.00028,2]
[423634367,1780267840000,-231.54,0.00024658,2]
[423634372,1780267840000,-665.5,0.00024725,2]
[423634370,1780267840000,-1000.0,0.00024658,2]
[423634376,1780267840000,-10924.20259767,0.00024809,2]
[423634380,1780267840000,-665.5,0.00024996,2]
[423634378,1780267840000,-665.5,0.0002486,2]
[423634382,1780267840000,-731.19,0.00025,7]
[423634381,1780267840000,-270.0,0.00025,2]
[423634392,1780267840000,-695.0,0.00025,2]
[423634383,1780267840000,-393.0,0.00025,2]
[423634397,1780267840000,-197.0,0.00025,2]
[423634389,1780267840000,-1112.135698,0.00025,2]
[423634387,1780267840000,-269.0,0.00025,2]
[423634385,1780267840000,-510.0,0.00025,2]
[423634393,1780267840000,-1061.0,0.00025,2]
[423634396,1780267840000,-300.0,0.00025,2]
[423634402,1780267840000,-665.5,0.00025131,2]
[423634399,1780267840000,-1002.0,0.00025,2]
[423634404,1780267840000,-665.5,0.00025267,2]
[423634412,1780267840000,-665.5,0.00025673,2]
[423634410,1780267840000,-157.06,0.00025598,2]
[423634405,1780267840000,-665.5,0.00025402,2]
[423634422,1780267840000,-665.5,0.00025809,2]
[423634418,1780267840000,-758.18,0.00025786,2]
[423634416,1780267840000,-652.64,0.00025786,2]
[423634408,1780267840000,-665.5,0.00025538,2]
[423634424,1780267840000,-665.5,0.00025944,2]
[423634497,1780267840000,-500.0,0.00028039,15]
[423634433,1780267840000,-665.5,0.0002608,2]
[423634499,1780267840000,-608.0,0.00028205,3]
[423634567,1780267840000,-422.66,0.00028632,30]
[423634571,1780267840000,-608.0,0.00028739,3]
[423634575,1780267840000,-503.58,0.00028798,7]
[423634573,1780267840000,-407.08,0.00028767,30]
[423634562,1780267840000,-756.87,0.00028631,30]
[423634564,1780267840000,-422.91,0.00028632,30]
[423634577,1780267840000,-1176.74,0.00028798,7]
[423634583,1780267840000,-422.91,0.00028799,7]
[423634579,1780267840000,-519.07,0.00028798,7]
[423634581,1780267840000,-756.87,0.00028798,7]
[423634596,1780267840000,-218.4,0.00028865,30]
[423634598,1780267840000,-2000.0,0.00028872,17]
[423634600,1780267840000,-217.22,0.00028879,30]
[423634560,1780267840000,-519.07,0.00028631,30]
[423634585,1780267840000,-731.19,0.000288,7]
[423634588,1780267840000,-218.4,0.00028822,2]
[423634594,1780267840000,-217.22,0.00028858,7]
[423634590,1780267840000,-217.22,0.00028838,2]
[423634604,1780267840000,-218.4,0.00028886,2]
[423634592,1780267840000,-218.4,0.00028843,7]
[423634610,1780267840000,-218.4,0.00028908,7]
[423634608,1780267840000,-217.22,0.000289,2]
[423634606,1780267840000,-701.23,0.000289,7]
[423634613,1780267840000,-217.22,0.00028921,7]
[423634616,1780267840000,-217.22,0.00028941,30]
[423634615,1780267840000,-218.4,0.0002893,30]
[423634617,1780267840000,-218.4,0.00028951,2]
[423634482,1780267840000,-2209.16,0.000274,14]
[423634602,1780267840000,-500.0,0.0002888,17]
[423634558,1780267840000,-1176.74,0.00028631,30]
[423634472,1780267840000,-1500.0,0.00027397,2]
[423634556,1780267840000,-503.58,0.00028631,30]
[423634485,1780267840000,-701.23,0.000274,7]
[423634569,1780267840000,-313.6,0.000287,7]
[423634501,1780267840000,-469.6,0.00028267,2]
[423634488,1780267840000,-313.6,0.000274,7]
[423634505,1780267840000,-155.56990815,0.00028386,2]
[423634507,1780267840000,-193.98409769,0.00028386,2]
[423634509,1780267840000,-161.35566711,0.00028386,2]
[423634512,1780267840000,-163.76256713,0.00028395,2]
[423634514,1780267840000,-185.73277347,0.00028395,2]
[423634525,1780267840000,-153.18372998,0.00028395,2]
[423634521,1780267840000,-190.9271738,0.00028395,2]
[423634516,1780267840000,-167.95642691,0.00028395,2]
[423634519,1780267840000,-163.11724327,0.00028395,2]
[423634523,1780267840000,-180.6845122,0.00028395,2]
[423634503,1780267840000,-164.15872095,0.00028386,2]
[423634530,1780267840000,-244.29235925,0.00028395,2]
[423634554,1780267840000,-222.13718411,0.00028395,2]